bitfinex-derivatives/quotes_BTCF0:USTF0_20250129
["timestamp","ask_amount","ask_price","bid_price","bid_amount"]
[1738192355578,0.002,103970.0,103960.0,1.34356273]
[1738192355775,0.001,103970.0,103960.0,1.34356273]
[1738192356277,0.32961874,103980.0,103970.0,0.192372]
[1738192356468,0.32961874,103980.0,103970.0,0.553172]
[1738192356876,0.00014468,103980.0,103970.0,0.65978906]
[1738192357071,0.29898241,104000.0,103970.0,0.57840906]
[1738192357072,0.11529958,104000.0,103970.0,0.57840906]
[1738192357268,0.11529958,104000.0,103990.0,1.02055206]
[1738192357671,0.11529958,104000.0,103990.0,1.05175206]
[1738192358276,0.11529958,104000.0,103990.0,0.945135]
[1738192358476,0.11929958,104000.0,103990.0,0.945135]
[1738192359975,0.12129958,104000.0,103990.0,0.945135]
[1738192360276,0.42023264,104000.0,103990.0,0.976935]
[1738192360882,0.30493306,104000.0,103990.0,0.976935]
[1738192361172,0.198316,104000.0,103990.0,0.976935]
[1738192362164,0.198316,104000.0,103990.0,1.08355206]
[1738192362165,0.006,104000.0,103990.0,1.08355206]
[1738192362380,0.0303,104020.0,104010.0,0.192298]
[1738192362582,0.0303,104020.0,104010.0,1.02051506]
[1738192362771,0.0303,104020.0,104010.0,0.913898]
[1738192363273,0.41418064,104030.0,104010.0,0.913898]
[1738192363274,0.22191664,104030.0,104010.0,0.89271706]
[1738192363477,0.11529958,104030.0,104020.0,0.65969606]
[1738192364478,0.12429958,104030.0,104020.0,0.65969606]
[1738192364982,0.224245,104040.0,104020.0,0.46741706]
[1738192365277,0.009,104030.0,104020.0,0.65969606]
[1738192365482,0.009,104030.0,104020.0,1.02049606]
[1738192365985,0.015,104030.0,104020.0,1.02049606]
[1738192366984,0.006,104030.0,104020.0,1.02149606]
[1738192367585,0.015,104030.0,104020.0,1.03460751]
[1738192371188,0.015,104030.0,104020.0,1.23460751]
[1738192371994,0.015,104030.0,104020.0,1.03460751]
[1738192373092,0.207261,104030.0,104020.0,1.11799045]
[1738192373394,0.015,104030.0,104020.0,1.22460751]
[1738192373985,0.015,104030.0,104020.0,1.03460751]
[1738192374186,0.015,104030.0,104020.0,1.26460751]
[1738192375289,0.015,104030.0,104020.0,1.23460751]
[1738192376189,0.015,104030.0,104020.0,1.03460751]
[1738192376389,0.015,104030.0,104020.0,1.24460751]
[1738192377297,0.015,104030.0,104020.0,1.23460751]
[1738192378379,0.015,104030.0,104020.0,1.25460751]
[1738192380283,0.015,104030.0,104020.0,1.03460751]
[1738192380485,0.015,104030.0,104020.0,1.25360751]
[1738192380788,0.004,104030.0,104020.0,1.30167451]
[1738192381379,0.004,104030.0,104020.0,1.27167451]
[1738192381987,0.005,104030.0,104020.0,1.27167451]
[1738192382486,0.005,104030.0,104020.0,1.28167451]
[1738192383589,0.28863,104050.0,104020.0,1.09139551]
[1738192383796,0.28863,104050.0,104040.0,0.65965906]
[1738192384798,0.28863,104050.0,104040.0,0.913842]
[1738192385898,0.28963,104050.0,104040.0,0.913842]
[1738192386395,0.28863,104050.0,104040.0,0.913842]
[1738192386585,0.28963,104050.0,104040.0,0.913842]
[1738192388187,0.28963,104050.0,104040.0,1.02045906]
[1738192388383,0.0974,104050.0,104040.0,1.02045906]
[1738192390498,0.0328,104050.0,104040.0,1.12707612]
[1738192390693,0.0328,104050.0,104040.0,1.31707612]
[1738192391085,0.0328,104050.0,104040.0,1.21045906]
[1738192391698,0.0328,104050.0,104040.0,1.02045906]
[1738192392314,0.11529958,104060.0,104040.0,0.98483412]
[1738192392488,0.11529958,104060.0,104050.0,0.72174106]
[1738192392687,0.11529958,104060.0,104050.0,0.91174106]
[1738192392887,0.11529958,104060.0,104050.0,0.72174106]
[1738192394297,0.11629958,104060.0,104050.0,0.77174106]
[1738192394593,0.14672731,104070.0,104050.0,0.87951706]
[1738192394800,0.17294938,104080.0,104070.0,0.192187]
[1738192394996,0.17294938,104080.0,104070.0,0.76622112]
[1738192395701,0.11505196,104080.0,104070.0,0.76622112]
[1738192396498,0.11905196,104080.0,104070.0,0.76622112]
[1738192396997,0.05275009,104080.0,104070.0,0.87018112]
[1738192397202,3.8e-07,104090.0,104080.0,0.552969]
[1738192397404,0.1,104100.0,104090.0,0.19215]
[1738192397598,0.1,104100.0,104090.0,0.76618412]
[1738192397795,0.1,104100.0,104090.0,0.67996706]
[1738192398000,0.1,104100.0,104090.0,0.78658412]
[1738192398202,0.1,104100.0,104090.0,0.98658412]
[1738192398504,0.104,104100.0,104090.0,0.98658412]
[1738192399400,0.104,104100.0,104090.0,0.78658412]
[1738192400106,0.105,104100.0,104090.0,0.78658412]
[1738192400609,0.105,104100.0,104090.0,1.44274457]
[1738192400799,0.105,104100.0,104090.0,1.33612751]
[1738192402006,0.105,104100.0,104090.0,1.06177751]
[1738192402207,0.297132,104100.0,104090.0,1.06177751]
[1738192402403,0.105,104100.0,104090.0,1.25392751]
[1738192403009,0.1365,104100.0,104090.0,1.47392751]
[1738192403400,0.1688,104100.0,104090.0,1.44392751]
[1738192403910,0.1678,104100.0,104090.0,0.85156706]
[1738192404108,0.1678,104100.0,104090.0,0.8634462]
[1738192404303,0.1678,104100.0,104090.0,0.6734462]
[1738192404501,0.1678,104100.0,104090.0,0.8634462]
[1738192404703,0.0332,104120.0,104090.0,0.77791326]
[1738192405009,0.46741706,104160.0,104110.0,1.02033006]
[1738192405010,0.192081,104130.0,104110.0,1.02033006]
[1738192405205,0.222881,104130.0,104120.0,0.3608]
[1738192406405,0.13741706,104130.0,104110.0,0.36094468]
[1738192406613,0.192095,104120.0,104110.0,0.36094468]
[1738192408005,0.223295,104120.0,104110.0,0.36094468]
[1738192408199,0.36001206,104120.0,104110.0,0.36094468]
[1738192408410,0.36001206,104120.0,104110.0,0.00014468]
[1738192408711,0.16791706,104120.0,104110.0,0.3608]
[1738192408908,0.0613,104120.0,104110.0,0.65953006]
[1738192409113,0.192064,104140.0,104120.0,0.192084]
[1738192409307,0.0312,104140.0,104130.0,1.02029306]
[1738192409607,0.223258,104140.0,104130.0,0.7216]
[1738192409912,0.223258,104140.0,104130.0,0.913676]
[1738192410415,0.224258,104140.0,104130.0,0.7216]
[1738192411414,0.224258,104140.0,104130.0,0.82821706]
[1738192411809,0.227258,104140.0,104130.0,0.82821706]
[1738192412211,0.257758,104140.0,104130.0,0.82821706]
[1738192412909,0.0657,104140.0,104130.0,1.02029306]
[1738192413908,0.0345,104140.0,104130.0,1.12691012]
[1738192414109,0.004,104140.0,104130.0,1.17691012]
[1738192414311,0.00014468,104150.0,104140.0,0.192058]
[1738192414508,0.00014468,104150.0,104140.0,0.69107506]
[1738192414918,0.00014468,104150.0,104140.0,0.65947506]
[1738192415107,0.19218368,104150.0,104140.0,0.65947506]
[1738192415814,0.00914468,104150.0,104140.0,0.66047506]
[1738192416518,0.00914468,104150.0,104140.0,0.87047506]
[1738192416713,0.00914468,104150.0,104140.0,0.66047506]
[1738192416918,0.00914468,104150.0,104140.0,0.87047506]
[1738192417820,0.00914468,104150.0,104140.0,0.88047506]
[1738192418920,0.00914468,104150.0,104140.0,0.66047506]
[1738192420614,0.20118368,104150.0,104140.0,0.66047506]
[1738192420917,0.20118368,104150.0,104140.0,0.88047506]
[1738192421715,0.23228368,104150.0,104140.0,0.88047506]
[1738192421914,0.23228368,104150.0,104140.0,0.66047506]
[1738192422422,0.23228368,104150.0,104140.0,0.46841706]
[1738192422921,0.23228368,104150.0,104140.0,0.68841706]
[1738192423916,0.23228368,104150.0,104140.0,0.67841706]
[1738192424114,0.22328368,104150.0,104140.0,0.68041706]
[1738192424920,0.22328368,104150.0,104140.0,0.47041706]
[1738192425115,0.22328368,104150.0,104140.0,0.47141706]
[1738192425422,0.22328368,104150.0,104140.0,0.66347506]
[1738192425624,0.22328368,104150.0,104140.0,0.47141706]
[1738192426009,0.58408368,104150.0,104140.0,0.004]
[1738192426221,0.192058,104140.0,104130.0,0.39676237]
[1738192426424,0.192095,104120.0,104110.0,0.28678507]
[1738192426622,0.88209706,104120.0,104100.0,0.34414208]
[1738192426815,0.65953006,104110.0,104100.0,0.29414208]
[1738192427011,0.65953006,104110.0,104100.0,0.38427993]
[1738192427211,0.552913,104110.0,104100.0,0.38427993]
[1738192428520,0.192113,104110.0,104100.0,0.85169699]
[1738192428727,0.195113,104110.0,104100.0,0.38427993]
[1738192428922,0.196113,104110.0,104100.0,0.74507993]
[1738192429128,0.196113,104110.0,104100.0,1.04382899]
[1738192429328,0.196113,104110.0,104100.0,0.93721193]
[1738192429721,0.195113,104110.0,104100.0,0.93721193]
[1738192430620,0.193113,104110.0,104100.0,0.93721193]
[1738192431016,0.193113,104110.0,104100.0,0.552932]
[1738192432627,0.29973006,104110.0,104100.0,0.3608]
[1738192434325,0.193113,104110.0,104100.0,0.3608]
[1738192434527,0.193113,104110.0,104100.0,0.552932]
[1738192436835,0.193113,104110.0,104100.0,0.3608]
[1738192437031,0.192132,104100.0,104090.0,0.61693153]
[1738192438532,0.192132,104100.0,104090.0,0.62093153]
[1738192438830,0.192132,104100.0,104090.0,0.61949068]
[1738192439217,0.192132,104100.0,104090.0,0.61849068]
[1738192439424,0.192132,104100.0,104090.0,0.61949068]
[1738192440328,0.29874906,104100.0,104090.0,0.36494468]
[1738192440924,0.192132,104100.0,104090.0,0.36494468]
[1738192441524,0.193132,104100.0,104090.0,0.36194468]
[1738192441726,0.193132,104100.0,104090.0,0.36094468]
[1738192442334,0.193132,104100.0,104090.0,0.55309468]
[1738192442524,0.192132,104100.0,104090.0,0.55309468]
[1738192442723,0.193132,104100.0,104090.0,0.65971174]
[1738192443236,0.193132,104100.0,104090.0,0.55309468]
[1738192444537,0.193132,104100.0,104090.0,0.65971174]
[1738192444732,0.193132,104100.0,104090.0,0.55309468]
[1738192446432,0.193132,104100.0,104090.0,0.65971174]
[1738192446938,0.193132,104100.0,104090.0,0.55309468]
[1738192448828,0.29974906,104100.0,104090.0,0.36094468]
[1738192449138,0.192132,104100.0,104090.0,0.36194468]
[1738192449331,0.192132,104100.0,104090.0,0.36494468]
[1738192450841,0.193132,104100.0,104090.0,0.55409468]
[1738192451042,0.193132,104100.0,104090.0,0.61349468]
[1738192452242,0.193132,104100.0,104090.0,0.61449468]
[1738192452440,0.192132,104100.0,104090.0,0.61749468]
[1738192454744,0.193132,104100.0,104090.0,0.61349468]
[1738192455745,0.192132,104100.0,104090.0,0.61349468]
[1738192455945,0.192132,104100.0,104090.0,0.61749468]
[1738192460240,0.30739227,104100.0,104090.0,0.61749468]
[1738192468749,0.30739227,104100.0,104090.0,0.62861731]
[1738192470458,0.41400933,104100.0,104090.0,0.42534468]
[1738192470864,0.88142639,104100.0,104090.0,0.00414468]
[1738192471154,0.19215,104090.0,104080.0,0.2851598]
[1738192471349,0.192169,104080.0,104070.0,0.34036894]
[1738192471549,0.192169,104080.0,104060.0,0.00144132]
[1738192471550,0.192187,104070.0,104060.0,0.00144132]
[1738192471758,0.65960406,104070.0,104060.0,0.00144132]
[1738192472960,0.29882306,104060.0,104050.0,0.40164378]
[1738192473749,0.33182306,104060.0,104050.0,0.40164378]
[1738192474353,0.33182306,104060.0,104050.0,0.40664378]
[1738192476058,0.192206,104060.0,104050.0,0.59886778]
[1738192476266,0.29982306,104060.0,104050.0,0.41164378]
[1738192476864,0.5583169,104060.0,104050.0,0.01014468]
[1738192477064,0.5583169,104060.0,104050.0,0.00814468]
[1738192478168,0.5583169,104060.0,104050.0,0.36894468]
[1738192479860,0.5583169,104060.0,104050.0,0.56116868]
[1738192480364,0.45169984,104060.0,104050.0,0.56116868]
[1738192480556,0.27922208,104060.0,104050.0,0.56116868]
[1738192480758,0.38583914,104060.0,104050.0,0.56116868]
[1738192481258,0.38583914,104060.0,104050.0,0.36894468]
[1738192481559,0.38583914,104060.0,104050.0,0.56116868]
[1738192481766,0.43967914,104060.0,104050.0,0.56116868]
[1738192482160,0.27922208,104060.0,104050.0,0.56116868]
[1738192483867,0.08701608,104060.0,104050.0,0.66778574]
[1738192484061,0.001,104060.0,104050.0,0.66778574]
[1738192485062,0.05157635,104070.0,104060.0,0.192206]
[1738192485369,0.14337825,104080.0,104070.0,0.192187]
[1738192485569,0.14337825,104080.0,104070.0,0.65960406]
[1738192486271,0.14337825,104080.0,104070.0,0.76622112]
[1738192486465,0.17142583,104090.0,104070.0,0.57403412]
[1738192486671,0.17142583,104090.0,104080.0,0.65958606]
[1738192487871,0.192118,104110.0,104100.0,0.192132]
[1738192488067,0.192118,104110.0,104100.0,0.552932]
[1738192489069,0.19290174,104120.0,104100.0,0.7216]
[1738192489070,0.33116174,104120.0,104100.0,0.7216]
[1738192489368,0.33116174,104120.0,104110.0,0.3608]
[1738192490970,0.33116174,104120.0,104110.0,0.552913]
[1738192491165,0.33516174,104120.0,104110.0,0.552913]
[1738192491367,0.22954468,104120.0,104110.0,0.552913]
[1738192492768,0.33616174,104120.0,104110.0,0.3608]
[1738192493865,0.22954468,104120.0,104110.0,0.552913]
[1738192494567,0.00514468,104120.0,104110.0,0.65953006]
[1738192495672,0.223542,104150.0,104110.0,0.50741706]
[1738192495866,0.10661706,104160.0,104150.0,0.192039]
[1738192495867,0.255925,104160.0,104150.0,0.192039]
[1738192496066,0.255925,104160.0,104150.0,0.3608]
[1738192496480,0.36254206,104160.0,104150.0,0.3608]
[1738192496768,0.255925,104160.0,104150.0,0.3608]
[1738192496968,0.0639,104160.0,104150.0,0.552839]
[1738192497174,0.19215068,104170.0,104160.0,0.192021]
[1738192497378,0.19215068,104170.0,104160.0,0.65943806]
[1738192497968,0.19215068,104170.0,104160.0,0.552821]
[1738192498570,0.19615068,104170.0,104160.0,0.552821]
[1738192500264,0.30276774,104170.0,104160.0,0.552821]
[1738192500464,0.19615068,104170.0,104160.0,0.3608]
[1738192500672,0.00414468,104170.0,104160.0,0.65943806]
[1738192501072,0.27142583,104200.0,104160.0,0.62203612]
[1738192501274,0.27142583,104200.0,104190.0,0.65938306]
[1738192501682,0.20177428,104210.0,104200.0,0.191947]
[1738192501980,0.20177428,104210.0,104200.0,0.65936406]
[1738192503076,0.30839134,104210.0,104190.0,0.42424398]
[1738192503270,0.191947,104200.0,104190.0,0.36194398]
[1738192503472,0.29856406,104200.0,104190.0,0.36194398]
[1738192503778,0.191947,104200.0,104190.0,0.36194398]
[1738192504969,0.191947,104200.0,104190.0,0.66052704]
[1738192505165,0.23637428,104210.0,104190.0,0.66052704]
[1738192505481,0.42531028,104210.0,104190.0,0.66052704]
[1738192506281,0.223536,104210.0,104190.0,0.65952704]
[1738192506784,0.191947,104200.0,104190.0,0.55290998]
[1738192508178,0.256347,104200.0,104190.0,0.55290998]
[1738192508980,0.256347,104200.0,104190.0,0.55590998]
[1738192510181,0.256347,104200.0,104190.0,0.55690998]
[1738192510378,0.256347,104200.0,104190.0,0.36494398]
[1738192510686,0.36296406,104200.0,104190.0,0.00414398]
[1738192510880,0.72376406,104200.0,104190.0,0.00114398]
[1738192511182,0.77748406,104200.0,104190.0,0.00014398]
[1738192512586,0.78048406,104200.0,104190.0,0.00014398]
[1738192513883,0.192003,104170.0,104160.0,0.00143994]
[1738192514486,0.552803,104170.0,104160.0,0.00143994]
[1738192514786,0.77514006,104170.0,104160.0,0.00143994]
[1738192515085,0.192058,104140.0,104130.0,0.70085283]
[1738192515287,0.192046,104150.0,104130.0,0.67025283]
[1738192515681,0.192046,104150.0,104130.0,0.67039681]
[1738192515879,0.192058,104140.0,104130.0,0.67039681]
[1738192516079,0.192058,104140.0,104130.0,0.65963704]
[1738192516289,0.192058,104140.0,104130.0,0.55301998]
[1738192516883,0.192058,104140.0,104130.0,0.55901998]
[1738192517490,0.193058,104140.0,104130.0,0.56201998]
[1738192517687,0.193058,104140.0,104130.0,0.56801998]
[1738192517988,0.193058,104140.0,104130.0,0.67463704]
[1738192518490,0.192058,104140.0,104130.0,0.56201998]
[1738192519390,0.192058,104140.0,104130.0,0.55801998]
[1738192523695,0.192058,104140.0,104130.0,0.36594398]
[1738192523893,0.35997506,104140.0,104130.0,0.36594398]
[1738192524087,0.77449506,104140.0,104130.0,0.00514398]
[1738192526699,0.41369506,104140.0,104130.0,0.00514398]
[1738192529200,0.307078,104140.0,104130.0,0.00514398]
[1738192529705,0.35997506,104140.0,104130.0,0.00514398]
[1738192532206,0.72077506,104140.0,104130.0,0.00514398]
[1738192532999,0.192113,104110.0,104100.0,0.10144049]
[1738192533196,0.29873006,104110.0,104100.0,0.10144049]
[1738192533396,0.39453006,104110.0,104100.0,0.10144049]
[1738192534198,0.39553006,104110.0,104100.0,0.11044049]
[1738192534795,0.39553006,104110.0,104100.0,0.11544049]
[1738192535698,0.81005006,104110.0,104100.0,0.11544049]
[1738192536100,0.44925006,104110.0,104100.0,0.11544049]
[1738192536406,0.001,104110.0,104100.0,0.88160661]
[1738192536596,0.192061,104140.0,104100.0,0.84020361]
[1738192536905,0.6047191,104150.0,104140.0,0.192058]
[1738192537105,0.192058,104140.0,104130.0,0.55287]
[1738192537800,0.193058,104140.0,104130.0,0.55287]
[1738192538196,0.192058,104140.0,104130.0,0.55287]
[1738192538400,0.192058,104140.0,104130.0,0.55587]
[1738192538802,0.192058,104140.0,104130.0,0.55687]
[1738192540304,0.4511267,104150.0,104140.0,0.192058]
[1738192540494,0.4511267,104150.0,104140.0,0.552858]
[1738192540701,0.34450964,104150.0,104140.0,0.552858]
[1738192540897,0.4511267,104150.0,104140.0,0.552858]
[1738192541205,0.34450964,104150.0,104140.0,0.552858]
[1738192541605,0.34450964,104150.0,104140.0,0.55269691]
[1738192542904,0.4511267,104150.0,104140.0,0.3608]
[1738192543308,0.34450964,104150.0,104140.0,0.3608]
[1738192544508,0.4511267,104150.0,104140.0,0.3608]
[1738192544812,0.34450964,104150.0,104140.0,0.552858]
[1738192545008,0.34450964,104150.0,104140.0,0.3608]
[1738192545198,0.4511267,104150.0,104140.0,0.3608]
[1738192545713,0.6198787,104150.0,104120.0,0.01048976]
[1738192545906,0.40531012,104130.0,104120.0,0.00014398]
[1738192546212,0.65949306,104130.0,104120.0,0.00014398]
[1738192547514,0.66049306,104130.0,104120.0,0.00814398]
[1738192548813,0.76711012,104130.0,104120.0,0.00814398]
[1738192549017,1.02461846,104130.0,104120.0,0.00614398]
[1738192549210,1.02461846,104130.0,104120.0,0.00814398]
[1738192551527,1.03488319,104130.0,104120.0,0.00814398]
[1738192551920,0.92826613,104130.0,104120.0,0.00814398]
[1738192552115,0.62114613,104130.0,104120.0,0.00814398]
[1738192552321,0.56746613,104130.0,104120.0,0.00814398]
[1738192552527,0.50629021,104130.0,104120.0,0.00814398]
[1738192553522,0.86709021,104130.0,104120.0,0.00814398]
[1738192556023,0.50629021,104130.0,104120.0,0.00814398]
[1738192558030,0.49602548,104130.0,104120.0,0.00814398]
[1738192558230,0.38940842,104130.0,104120.0,0.00814398]
[1738192558430,0.38940842,104130.0,104120.0,0.20023898]
[1738192558940,0.38940842,104130.0,104120.0,0.00814398]
[1738192559124,0.49602548,104130.0,104120.0,0.00814398]
[1738192561435,0.46820189,104130.0,104120.0,0.00814398]
[1738192561626,0.93561895,104130.0,104120.0,0.00814398]
[1738192562039,0.82900189,104130.0,104120.0,0.00814398]
[1738192563435,0.93561895,104130.0,104120.0,0.00814398]
[1738192564230,0.96344254,104130.0,104120.0,0.00814398]
[1738192564747,0.85682548,104130.0,104120.0,0.00814398]
[1738192565237,0.96344254,104130.0,104120.0,0.00814398]
[1738192565628,0.85682548,104130.0,104120.0,0.00814398]
[1738192565827,0.96344254,104130.0,104120.0,0.00814398]
[1738192566531,0.85682548,104130.0,104120.0,0.00814398]
[1738192567332,0.96344254,104130.0,104120.0,0.00814398]
[1738192567630,0.85682548,104130.0,104120.0,0.00814398]
[1738192567831,0.96344254,104130.0,104120.0,0.00814398]
[1738192568134,1.13486522,104130.0,104120.0,0.00814398]
[1738192570140,0.192113,104110.0,104100.0,0.1]
[1738192570345,0.29876706,104090.0,104080.0,0.40026489]
[1738192570542,0.65956706,104090.0,104080.0,0.40026489]
[1738192570743,0.75526706,104090.0,104080.0,0.40026489]
[1738192570946,0.19215,104090.0,104080.0,0.59243389]
[1738192571147,0.19215,104090.0,104080.0,0.95323389]
[1738192571345,0.25136198,104100.0,104090.0,0.19215]
[1738192571643,0.25136198,104100.0,104090.0,0.55295]
[1738192571644,0.19228198,104100.0,104090.0,0.55295]
[1738192572150,0.19228198,104100.0,104090.0,0.65956706]
[1738192572344,0.00014398,104100.0,104090.0,0.65956706]
[1738192573450,0.3140751,104110.0,104100.0,0.192132]
[1738192573651,0.192066,104140.0,104130.0,0.192077]
[1738192573834,0.192077,104130.0,104120.0,0.3608]
[1738192574149,0.192095,104120.0,104110.0,0.552909]
[1738192575642,0.192095,104120.0,104110.0,0.554909]
[1738192576147,0.192095,104120.0,104110.0,0.66152606]
[1738192576349,0.192095,104120.0,104110.0,0.554909]
[1738192576648,0.192095,104120.0,104110.0,0.587109]
[1738192576850,0.193095,104120.0,104110.0,0.69472606]
[1738192577147,0.193095,104120.0,104110.0,0.86611452]
[1738192578249,0.193095,104120.0,104110.0,0.75949746]
[1738192578645,0.001,104120.0,104110.0,0.86611452]
[1738192580748,0.193095,104120.0,104110.0,0.75949746]
[1738192580948,0.001,104120.0,104110.0,0.86611452]
[1738192582449,0.001,104120.0,104110.0,0.87644326]
[1738192589851,0.00014164,104130.0,104110.0,0.68433426]
[1738192590055,0.00014164,104130.0,104120.0,0.65951206]
[1738192590560,0.19221764,104130.0,104120.0,0.65951206]
[1738192591446,0.19221764,104130.0,104120.0,0.66251206]
[1738192593552,0.19221764,104130.0,104120.0,0.66351206]
[1738192595063,0.11503907,104150.0,104140.0,0.192058]
[1738192595358,0.11503907,104150.0,104140.0,1.02027506]
[1738192595564,0.11503907,104150.0,104140.0,1.05187506]
[1738192596767,0.11603907,104150.0,104140.0,1.05187506]
[1738192597258,0.11603907,104150.0,104140.0,1.10187506]
[1738192597466,0.20177428,104170.0,104160.0,0.192021]
[1738192597654,0.20177428,104170.0,104160.0,1.12685512]
[1738192597851,0.23059917,104180.0,104170.0,0.192003]
[1738192598051,0.23059917,104180.0,104170.0,0.65942006]
[1738192598250,0.23059917,104180.0,104170.0,0.69102006]
[1738192598653,0.259213,104220.0,104210.0,0.191929]
[1738192598852,0.259213,104220.0,104210.0,1.02014606]
[1738192599049,0.57476671,104220.0,104210.0,1.02014606]
[1738192599252,0.57476671,104220.0,104210.0,0.913529]
[1738192600265,0.57476671,104220.0,104210.0,1.02014606]
[1738192600461,0.57676671,104220.0,104210.0,1.02114606]
[1738192600663,0.57676671,104220.0,104210.0,0.66034606]
[1738192600867,0.58576671,104220.0,104210.0,0.3628]
[1738192601066,0.69238377,104220.0,104210.0,0.3628]
[1738192601263,0.58576671,104220.0,104210.0,0.3628]
[1738192602462,0.270213,104220.0,104210.0,0.3628]
[1738192602659,0.270213,104220.0,104210.0,0.001]
[1738192602660,0.261213,104220.0,104210.0,0.001]
[1738192602861,0.37483006,104220.0,104210.0,0.001]
[1738192603064,0.270213,104220.0,104210.0,0.001]
[1738192603256,0.270213,104220.0,104210.0,0.46841706]
[1738192603464,0.011,104220.0,104210.0,0.66034606]
[1738192606857,0.001,104220.0,104210.0,0.65934606]
[1738192607768,0.001,104220.0,104210.0,0.86934606]
[1738192609176,0.001,104220.0,104210.0,0.69934606]
[1738192609363,0.0979,104250.0,104240.0,0.191874]
[1738192609564,0.191839,104260.0,104240.0,0.82821706]
[1738192609761,0.191839,104260.0,104250.0,0.65927206]
[1738192609965,0.191839,104260.0,104250.0,0.552655]
[1738192610960,0.191839,104260.0,104250.0,0.65927206]
[1738192611175,0.1009,104270.0,104260.0,0.191837]
[1738192611377,0.1009,104270.0,104260.0,0.65925406]
[1738192611567,0.08545546,104290.0,104260.0,0.46741706]
[1738192611771,0.37874046,104290.0,104270.0,0.65923006]
[1738192612266,0.37874046,104290.0,104270.0,0.65937404]
[1738192612672,0.1918,104280.0,104270.0,0.65937404]
[1738192613178,0.1918,104280.0,104270.0,0.66037404]
[1738192613768,0.1918,104280.0,104270.0,0.87937404]
[1738192613968,0.1938,104280.0,104270.0,0.88037404]
[1738192614165,0.2028,104280.0,104270.0,0.88137404]
[1738192614375,0.2028,104280.0,104270.0,0.46956104]
[1738192614675,0.13084618,104280.0,104270.0,0.36294398]
[1738192615069,0.23746324,104280.0,104270.0,0.00214398]
[1738192615273,0.59826324,104280.0,104270.0,0.00214398]
[1738192616779,0.65067267,104280.0,104270.0,0.00214398]
[1738192617578,0.65067267,104280.0,104270.0,0.00114398]
[1738192618583,0.65067267,104280.0,104270.0,0.00098331]
[1738192622091,0.64867267,104280.0,104270.0,0.00098331]
[1738192622287,0.65067267,104280.0,104270.0,0.00098331]
[1738192622687,0.66094392,104280.0,104270.0,0.00098331]
[1738192623284,0.54109774,104280.0,104260.0,0.00014398]
[1738192623491,0.552619,104270.0,104260.0,0.00014398]
[1738192623884,0.76828549,104270.0,104260.0,9.8e-07]
[1738192624483,0.76828549,104270.0,104260.0,0.00100098]
[1738192624786,0.76816549,104270.0,104260.0,0.00100098]
[1738192624985,0.609139,104270.0,104260.0,0.00100098]
[1738192625186,0.76816549,104270.0,104260.0,0.00100098]
[1738192626178,0.76816549,104270.0,104260.0,9.8e-07]
[1738192626179,0.609139,104270.0,104260.0,9.8e-07]
[1738192626488,0.613139,104270.0,104260.0,9.8e-07]
[1738192626894,0.620139,104270.0,104260.0,0.00100098]
[1738192627383,0.42832,104270.0,104240.0,0.27113218]
[1738192627694,0.552651,104260.0,104250.0,0.191855]
[1738192629893,0.552651,104260.0,104250.0,0.193855]
[1738192630094,0.552651,104260.0,104250.0,0.36524346]
[1738192630296,0.552651,104260.0,104250.0,0.59367881]
[1738192632896,0.191851,104260.0,104250.0,0.59367881]
[1738192633288,0.00014398,104270.0,104250.0,1.15250263]
[1738192633487,0.55277698,104270.0,104250.0,1.18540263]
[1738192633689,0.55277698,104270.0,104250.0,0.85498768]
[1738192633690,0.191837,104260.0,104250.0,0.85498768]
[1738192633890,0.191837,104260.0,104250.0,0.49418768]
[1738192634091,0.00014398,104270.0,104260.0,0.191837]
[1738192634297,0.37874346,104290.0,104280.0,0.1918]
[1738192634602,0.18695546,104290.0,104280.0,0.59159733]
[1738192634795,0.08545546,104290.0,104280.0,0.75062382]
[1738192635297,0.17130002,104320.0,104310.0,0.191745]
[1738192635487,0.17130002,104320.0,104310.0,0.75056882]
[1738192636001,0.17130002,104320.0,104310.0,0.78276882]
[1738192636498,0.36302702,104320.0,104310.0,0.62374233]
[1738192636692,0.36302702,104320.0,104310.0,0.72964165]
[1738192636892,0.36302702,104320.0,104310.0,0.73264165]
[1738192637395,0.36302702,104320.0,104310.0,0.37184165]
[1738192637794,0.36302702,104320.0,104310.0,0.07419733]
[1738192638095,0.36302702,104320.0,104310.0,0.003]
[1738192638998,0.191727,104320.0,104310.0,0.003]
[1738192639200,0.552527,104320.0,104310.0,0.003]
[1738192640199,0.71138916,104320.0,104310.0,0.003]
[1738192640902,0.552527,104320.0,104310.0,0.003]
[1738192642496,0.556527,104320.0,104310.0,0.001]
[1738192642695,0.71538916,104320.0,104310.0,0.001]
[1738192642896,0.42012,104320.0,104300.0,0.00014398]
[1738192643097,0.552545,104310.0,104300.0,0.00014398]
[1738192643401,0.191745,104310.0,104300.0,0.00014398]
[1738192643597,0.191745,104310.0,104300.0,0.17044746]
[1738192644403,0.192745,104310.0,104300.0,0.17044746]
[1738192644604,0.192745,104310.0,104300.0,0.17144746]
[1738192644912,0.192745,104310.0,104300.0,0.52207262]
[1738192645605,0.191745,104310.0,104300.0,0.52207262]
[1738192645908,0.191745,104310.0,104300.0,0.52407262]
[1738192646101,0.191745,104310.0,104300.0,0.52307262]
[1738192646306,0.191745,104310.0,104300.0,0.52407262]
[1738192646505,0.191729,104320.0,104310.0,0.191741]
[1738192646808,0.19185698,104330.0,104320.0,0.191727]
[1738192647108,0.19185698,104330.0,104320.0,0.71138916]
[1738192647408,0.19185698,104330.0,104320.0,0.74768916]
[1738192647608,0.19185698,104330.0,104320.0,0.81548916]
[1738192647908,0.552475,104350.0,104340.0,0.19169]
[1738192648100,0.552475,104350.0,104340.0,0.35055216]
[1738192648409,0.552475,104350.0,104340.0,0.19169]
[1738192649311,0.552475,104350.0,104340.0,0.35055216]
[1738192649611,0.200675,104350.0,104340.0,0.19269]
[1738192649813,0.009,104350.0,104340.0,0.71235216]
[1738192649998,0.01,104350.0,104340.0,0.71335216]
[1738192650201,0.201672,104350.0,104340.0,0.55449]
[1738192650403,0.562472,104350.0,104340.0,0.19369]
[1738192650910,0.561472,104350.0,104340.0,0.19269]
[1738192652004,0.009,104350.0,104340.0,0.55349]
[1738192652205,0.009,104350.0,104340.0,0.19269]
[1738192652407,0.192672,104350.0,104340.0,0.19169]
[1738192653112,0.19169,104340.0,104330.0,0.72154285]
[1738192653818,0.19169,104340.0,104330.0,0.89184633]
[1738192654507,0.001,104350.0,104330.0,0.70014433]